Workbook

Sheet Sample
C2: =Valuation!D6 -> ABC Plumbing Company
Q3: Data Entry Instructions
C4: Selling | E4: Gross | G4: Cash Flow | I4: Inventory (e) | J4: Fixtures (f) | K4: SDE% d ÷ c | M4: Revenue | N4: Cash Flow
C5: Price (b) | E5: Revenues (c) | G5: (SDE) (d) | M5: Multiplier b ÷ c | N5: Multiplier b ÷ d | Q5: 1) Enter Comparable data in appropriate columns
B6: 1 | C6: 860000.14 | E6: 1415000.14 | G6: 214000.14 | I6: 10000 | J6: 10000 | K6: =IF(G6=0,"",ROUND(G6/E6,3)) -> 0.151 | M6: =IF(C6=0,"",ROUND(C6/E6,2)) -> 0.61 | N6: =IF(G6=0,"",ROUND(C6/G6,2)) -> 4.02 | Q6: 2) Click "HIDE" or "SHOW" buttons as desired.
B7: 2 | C7: 665000.04 | E7: 730242.04 | G7: 125887.04 | I7: 50000 | J7: 565000 | K7: =IF(G7=0,"",ROUND(G7/E7,3)) -> 0.172 | M7: =IF(C7=0,"",ROUND(C7/E7,2)) -> 0.91 | N7: =IF(G7=0,"",ROUND(C7/G7,2)) -> 5.28
B8: 3 | C8: 450000.05 | E8: 785955.05 | G8: 153143.05 | I8: 136502 | J8: 132104 | K8: 0.195 | M8: 0.57 | N8: 2.94 | Q8: 3) Click "SORT BY SDE%" button
B9: 4 | C9: 995000.18 | E9: 1673000.18 | G9: 329000.18 | I9: 651000 | J9: 125000 | K9: 0.197 | M9: 0.59 | N9: 3.02
B10: 5 | C10: 1120000.17 | E10: 1629000.17 | G10: 330000.17 | I10: 700000 | J10: 20000 | K10: 0.203 | M10: 0.69 | N10: 3.39 | Q10: 4) GO TO the "REGRESSION" worksheet
B11: 6 | C11: 550000.03 | E11: 662242.03 | G11: 147272.03 | I11: 15000 | J11: 110000 | K11: 0.222 | M11: 0.83 | N11: 3.73 | Q11: Click on "REFORMAT CHARTS" button at top of worksheet.
B12: 7 | C12: 708891.15 | E12: 1495046.15 | G12: 367516.15 | I12: 163837 | J12: 72612 | K12: 0.246 | M12: 0.47 | N12: 1.93 | Q12: Click "Revenue Curved" or "Cash Flow Curved" buttons as desired.
B13: 8 | C13: 750000.08 | E13: 908000.08 | G13: 228000.08 | I13: 7808 | J13: 16191 | K13: 0.251 | M13: 0.83 | N13: 3.29
B14: 9 | C14: 520000.02 | E14: 538871.02 | G14: 141459.02 | I14: 3705 | J14: 231060 | K14: 0.263 | M14: 0.96 | N14: 3.68 | Q14: 5) GO TO the "VALUATION" worksheet and enter in your company's data.
B15: 10 | C15: 1330000.16 | E15: 1600000.16 | G15: 439000.16 | I15: 125000 | J15: 1100000 | K15: 0.274 | M15: 0.83 | N15: 3.03
B16: 11 | C16: 750000.06 | E16: 807000.06 | G16: 237000.06 | I16: 400000 | J16: 100000 | K16: 0.294 | M16: 0.93 | N16: 3.16
B17: 12 | C17: 340000.01 | E17: 501995.01 | G17: 161998.01 | I17: 71577 | J17: 148422 | K17: 0.323 | M17: 0.68 | N17: 2.1
B18: 13 | C18: 565000.12 | E18: 1135715.12 | G18: 383368.12 | I18: 31889 | J18: 234650 | K18: 0.338 | M18: 0.5 | N18: 1.47
B19: 14 | C19: 1025000.1 | E19: 966576.1 | G19: 329544.1 | I19: 24144 | J19: 50066 | K19: 0.341 | M19: 1.06 | N19: 3.11
B20: 15 | C20: 1576466.13 | E20: 1232034.13 | G20: 527550.13 | I20: 194558 | J20: 403433 | K20: 0.428 | M20: 1.28 | N20: 2.99
B21: 16 | C21: 885000.07 | E21: 830000.07 | G21: 375000.07 | I21: 400000 | J21: 100000 | K21: 0.452 | M21: 1.07 | N21: 2.36
B22: 17 | C22: 1320000.11 | E22: 1079000.11 | G22: 490000.11 | I22: 215000 | J22: 22000 | K22: 0.454 | M22: 1.22 | N22: 2.69
B23: 18 | C23: 1300000.09 | E23: 910000.09 | G23: 439000.09 | I23: 195212 | J23: 404787 | K23: 0.482 | M23: 1.43 | N23: 2.96
B24: 19
B25: 20
B26: 21
B27: 22
B28: 23
B29: 24
B30: 25
B31: 26
B32: 27
B33: 28
B34: 29
B35: 30
B36: Avg = | C36: =AVERAGE(IF(C6:C35=0,"",C6:C35)) -> 872797.7061 | E36: =AVERAGE(IF(E6:E35=0,"",E6:E35)) -> 1049982.095 | G36: =AVERAGE(IF(G6:G35=0,"",G6:G35)) -> 301041.0394 | I36: =AVERAGE(IF(I6:I35=0,"",I6:I35)) -> 188624 | J36: =AVERAGE(IF(J6:J35=0,"",J6:J35)) -> 213629.1667 | K36: SDE % Range | M36: Revenue Mult Range | N36: Cash Flow Mult Range
C37: Lower Quartile | K37: =ROUND(QUARTILE($K$6:$K$35,1),3) -> 0.208 | M37: =ROUND(QUARTILE($M$6:$M$35,1),2) -> 0.63 | N37: =ROUND(QUARTILE($N$6:$N$35,1),2) -> 2.75
C38: Median | K38: =ROUND(MEDIAN($K$6:$K$35),3) -> 0.269 | M38: =ROUND(MEDIAN($M$6:$M$35),2) -> 0.83 | N38: =ROUND(MEDIAN($N$6:$N$35),2) -> 3.03
C39: Upper Quartile | K39: =ROUND(QUARTILE($K$6:$K$35,3),3) -> 0.34 | M39: =ROUND(QUARTILE($M$6:$M$35,3),2) -> 1.04 | N39: =ROUND(QUARTILE($N$6:$N$35,3),2) -> 3.37
C40: Average | K40: =ROUND(AVERAGE($K$6:$K$35),3) -> 0.294 | M40: =ROUND(AVERAGE($M$6:$M$35),2) -> 0.86 | N40: =ROUND(AVERAGE($N$6:$N$35),2) -> 3.06
C41: Harmonic Mean | K41: =ROUND(HARMEAN(K6:K35),3) -> 0.262 | M41: =ROUND(HARMEAN(M6:M35),2) -> 0.78 | N41: =ROUND(HARMEAN(N6:N35),2) -> 2.83

Sheet Regression
B1: FIRST REGRESSION - IDENTIFYING OUTLIERS | AD1: Depending on your range of multipliers or range of the SDE%, you may have to right hand click on the multiplier Y-axis or SDE% X-axis and REFORMAT the spacing between the % or multipliers for easier reading. | AI1: =COLUMN() -> 35 | AJ1: =COLUMN() -> 36 | AK1: =COLUMN() -> 37 | AL1: SUMMARY OUTPUT | AW1: =COLUMN() -> 49 | AX1: =COLUMN() -> 50 | AY1: =COLUMN() -> 51 | AZ1: SUMMARY OUTPUT
J3: Revenue Multiplier Data | X3: Cash Flow Multiplier Data | AL3: Regression Statistics | AZ3: Regression Statistics
J4: SDE% | K4: Actual Multiplier | M4: Predicted Multiplier | N4: Difference | X4: SDE% | Y4: Actual Multiplier | AA4: Predicted Multiplier | AB4: Difference | AL4: Multiple R | AM4: 0.6039689862 | AZ4: Multiple R | BA4: 0.7681452227
G5: 0 | H5: 0 | U5: 0 | V5: 0 | AD5: Polynomial Regression | AL5: R Square | AM5: 0.3647785363 | AZ5: R Square | BA5: 0.5900470832
G6: =IF(J6="","",IF(ABS(N6)>=$D$28,LARGE(G$5:$G5,1)+1,"")) ->  | H6: =IF(J6="","",IF(ABS(N6)<$D$28,LARGE($H$5:H5,1)+1,"")) -> 1 | I6: 1 | J6: =IF(Sample!K6="","",Sample!K6) -> 0.151 | K6: =IF(Sample!M6="","",Sample!M6) -> 0.61 | M6: =IF(J6="","",IF($AE$10="X",ROUND(AM26,2),ROUND(ROUND(SLOPE($K$6:$K$35,$J$6:$J$35),2)*J6+ROUND(INTERCEPT($K$6:$K$35,$J$6:$J$35),2),2))) -> 0.58 | N6: =IF(J6="","",ROUND(K6-M6,2)) -> 0.03 | U6: =IF(X6="","",IF(ABS(AB6)>=$R$28,LARGE($U$5:U5,1)+1,"")) ->  | V6: =IF(X6="","",IF(ABS(AB6)<$R$28,LARGE($V$5:V5,1)+1,"")) -> 1 | W6: 1 | X6: =IF(Sample!K6="","",Sample!K6) -> 0.151 | Y6: =IF(Sample!N6="","",Sample!N6) -> 4.02 | AA6: =IF(X6="","",ROUND(ROUND(SLOPE($Y$6:$Y$35,$X$6:$X$35),2)*X6 +ROUND(INTERCEPT($Y$6:$Y$35,$X$6:$X$35),2),2)) -> 3.64 | AB6: =IF(X6="","",ROUND(Y6-AA6,2)) -> 0.38 | AI6: =J6 -> 0.151 | AJ6: =IF(AI6="","",AI6^2) -> 0.022801 | AK6: =K6 -> 0.61 | AL6: Adjusted R Square | AM6: 0.3012563899 | AW6: =X6 -> 0.151 | AX6: =IF(AW6="","",AW6^2) -> 0.022801 | AY6: =Y6 -> 4.02 | AZ6: Adjusted R Square | BA6: 0.5490517915
G7: =IF(J7="","",IF(ABS(N7)>=$D$28,LARGE(G$5:$G6,1)+1,"")) -> 1 | H7: =IF(J7="","",IF(ABS(N7)<$D$28,LARGE($H$5:H6,1)+1,"")) ->  | I7: =IF(J7="","",I6+1) -> 2 | J7: =IF(Sample!K7="","",Sample!K7) -> 0.172 | K7: =IF(Sample!M7="","",Sample!M7) -> 0.91 | M7: =IF(J7="","",IF($AE$10="X",ROUND(AM27,2),ROUND(ROUND(SLOPE($K$6:$K$35,$J$6:$J$35),2)*J7+ROUND(INTERCEPT($K$6:$K$35,$J$6:$J$35),2),2))) -> 0.62 | N7: 0.29 | U7: =IF(X7="","",IF(ABS(AB7)>=$R$28,LARGE($U$5:U6,1)+1,"")) -> 1 | V7: =IF(X7="","",IF(ABS(AB7)<$R$28,LARGE($V$5:V6,1)+1,"")) ->  | W7: =IF(X7="","",W6+1) -> 2 | X7: =IF(Sample!K7="","",Sample!K7) -> 0.172 | Y7: =IF(Sample!N7="","",Sample!N7) -> 5.28 | AA7: =IF(X7="","",ROUND(ROUND(SLOPE($Y$6:$Y$35,$X$6:$X$35),2)*X7 +ROUND(INTERCEPT($Y$6:$Y$35,$X$6:$X$35),2),2)) -> 3.55 | AB7: 1.73 | AD7: Trendline | AE7: Revenue Multiplier | AF7: Cash Flow Multiplier | AI7: =J7 -> 0.172 | AJ7: =IF(AI7="","",AI7^2) -> 0.029584 | AK7: =K7 -> 0.91 | AL7: Standard Error | AM7: 0.1756946868 | AW7: =X7 -> 0.172 | AX7: =IF(AW7="","",AW7^2) -> 0.029584 | AY7: =Y7 -> 5.28 | AZ7: Standard Error | BA7: 1.12619854
G8: =IF(J8="","",IF(ABS(N8)>=$D$28,LARGE(G$5:$G7,1)+1,"")) ->  | H8: =IF(J8="","",IF(ABS(N8)<$D$28,LARGE($H$5:H7,1)+1,"")) -> 2 | I8: =IF(J8="","",I7+1) -> 3 | J8: =IF(Sample!K8="","",Sample!K8) -> 0.195 | K8: =IF(Sample!M8="","",Sample!M8) -> 0.57 | M8: =IF(J8="","",IF($AE$10="X",ROUND(AM28,2),ROUND(ROUND(SLOPE($K$6:$K$35,$J$6:$J$35),2)*J8+ROUND(INTERCEPT($K$6:$K$35,$J$6:$J$35),2),2))) -> 0.67 | N8: -0.1 | U8: =IF(X8="","",IF(ABS(AB8)>=$R$28,LARGE($U$5:U7,1)+1,"")) ->  | V8: =IF(X8="","",IF(ABS(AB8)<$R$28,LARGE($V$5:V7,1)+1,"")) -> 2 | W8: =IF(X8="","",W7+1) -> 3 | X8: =IF(Sample!K8="","",Sample!K8) -> 0.195 | Y8: =IF(Sample!N8="","",Sample!N8) -> 2.94 | AA8: =IF(X8="","",ROUND(ROUND(SLOPE($Y$6:$Y$35,$X$6:$X$35),2)*X8 +ROUND(INTERCEPT($Y$6:$Y$35,$X$6:$X$35),2),2)) -> 3.46 | AB8: -0.52 | AI8: 0.195 | AJ8: 0.038025 | AK8: 0.57 | AL8: Observations | AM8: 23 | AW8: 0.195 | AX8: 0.038025 | AY8: 2.94 | AZ8: Observations | BA8: 23
G9: =IF(J9="","",IF(ABS(N9)>=$D$28,LARGE(G$5:$G8,1)+1,"")) ->  | H9: =IF(J9="","",IF(ABS(N9)<$D$28,LARGE($H$5:H8,1)+1,"")) -> 3 | I9: 4 | J9: =IF(Sample!K9="","",Sample!K9) -> 0.197 | K9: =IF(Sample!M9="","",Sample!M9) -> 0.59 | M9: =IF(J9="","",IF($AE$10="X",ROUND(AM29,2),ROUND(ROUND(SLOPE($K$6:$K$35,$J$6:$J$35),2)*J9+ROUND(INTERCEPT($K$6:$K$35,$J$6:$J$35),2),2))) -> 0.67 | N9: -0.08 | U9: =IF(X9="","",IF(ABS(AB9)>=$R$28,LARGE($U$5:U8,1)+1,"")) ->  | V9: =IF(X9="","",IF(ABS(AB9)<$R$28,LARGE($V$5:V8,1)+1,"")) -> 3 | W9: 4 | X9: =IF(Sample!K9="","",Sample!K9) -> 0.197 | Y9: =IF(Sample!N9="","",Sample!N9) -> 3.02 | AA9: =IF(X9="","",ROUND(ROUND(SLOPE($Y$6:$Y$35,$X$6:$X$35),2)*X9 +ROUND(INTERCEPT($Y$6:$Y$35,$X$6:$X$35),2),2)) -> 3.45 | AB9: -0.43 | AI9: 0.197 | AJ9: 0.038809 | AK9: 0.59 | AW9: 0.197 | AX9: 0.038809 | AY9: 3.02
G10: =IF(J10="","",IF(ABS(N10)>=$D$28,LARGE(G$5:$G9,1)+1,"")) ->  | H10: =IF(J10="","",IF(ABS(N10)<$D$28,LARGE($H$5:H9,1)+1,"")) -> 4 | I10: 5 | J10: =IF(Sample!K10="","",Sample!K10) -> 0.203 | K10: =IF(Sample!M10="","",Sample!M10) -> 0.69 | M10: =IF(J10="","",IF($AE$10="X",ROUND(AM30,2),ROUND(ROUND(SLOPE($K$6:$K$35,$J$6:$J$35),2)*J10+ROUND(INTERCEPT($K$6:$K$35,$J$6:$J$35),2),2))) -> 0.68 | N10: 0.01 | U10: =IF(X10="","",IF(ABS(AB10)>=$R$28,LARGE($U$5:U9,1)+1,"")) ->  | V10: =IF(X10="","",IF(ABS(AB10)<$R$28,LARGE($V$5:V9,1)+1,"")) -> 4 | W10: 5 | X10: =IF(Sample!K10="","",Sample!K10) -> 0.203 | Y10: =IF(Sample!N10="","",Sample!N10) -> 3.39 | AA10: =IF(X10="","",ROUND(ROUND(SLOPE($Y$6:$Y$35,$X$6:$X$35),2)*X10 +ROUND(INTERCEPT($Y$6:$Y$35,$X$6:$X$35),2),2)) -> 3.43 | AB10: -0.04 | AD10: Linear | AI10: 0.203 | AJ10: 0.041209 | AK10: 0.69 | AL10: ANOVA | AW10: 0.203 | AX10: 0.041209 | AY10: 3.39 | AZ10: ANOVA
G11: =IF(J11="","",IF(ABS(N11)>=$D$28,LARGE(G$5:$G10,1)+1,"")) ->  | H11: =IF(J11="","",IF(ABS(N11)<$D$28,LARGE($H$5:H10,1)+1,"")) -> 5 | I11: 6 | J11: =IF(Sample!K11="","",Sample!K11) -> 0.222 | K11: =IF(Sample!M11="","",Sample!M11) -> 0.83 | M11: 0.72 | N11: 0.11 | U11: =IF(X11="","",IF(ABS(AB11)>=$R$28,LARGE($U$5:U10,1)+1,"")) ->  | V11: =IF(X11="","",IF(ABS(AB11)<$R$28,LARGE($V$5:V10,1)+1,"")) -> 5 | W11: 6 | X11: =IF(Sample!K11="","",Sample!K11) -> 0.222 | Y11: =IF(Sample!N11="","",Sample!N11) -> 3.73 | AA11: =IF(X11="","",ROUND(ROUND(SLOPE($Y$6:$Y$35,$X$6:$X$35),2)*X11 +ROUND(INTERCEPT($Y$6:$Y$35,$X$6:$X$35),2),2)) -> 3.35 | AB11: 0.38 | AI11: 0.222 | AJ11: 0.049284 | AK11: 0.83 | AM11: df | AN11: SS | AO11: MS | AP11: F | AQ11: Significance F | AW11: 0.222 | AX11: 0.049284 | AY11: 3.73 | BA11: df | BB11: SS | BC11: MS | BD11: F | BE11: Significance F
G12: =IF(J12="","",IF(ABS(N12)>=$D$28,LARGE(G$5:$G11,1)+1,"")) -> 2 | H12: =IF(J12="","",IF(ABS(N12)<$D$28,LARGE($H$5:H11,1)+1,"")) ->  | I12: 7 | J12: =IF(Sample!K12="","",Sample!K12) -> 0.246 | K12: =IF(Sample!M12="","",Sample!M12) -> 0.47 | M12: 0.77 | N12: -0.3 | U12: =IF(X12="","",IF(ABS(AB12)>=$R$28,LARGE($U$5:U11,1)+1,"")) -> 2 | V12: =IF(X12="","",IF(ABS(AB12)<$R$28,LARGE($V$5:V11,1)+1,"")) ->  | W12: 7 | X12: =IF(Sample!K12="","",Sample!K12) -> 0.246 | Y12: =IF(Sample!N12="","",Sample!N12) -> 1.93 | AA12: 3.25 | AB12: -1.32 | AI12: 0.246 | AJ12: 0.060516 | AK12: 0.47 | AL12: Regression | AM12: 2 | AN12: 0.354528672 | AO12: 0.177264336 | AP12: 5.742541099 | AQ12: 0.01069674498 | AW12: 0.246 | AX12: 0.060516 | AY12: 1.93 | AZ12: Regression | BA12: 2 | BB12: 36.5100647 | BC12: 18.25503235 | BD12: 14.39304513 | BE12: 0.0001340725308
G13: =IF(J13="","",IF(ABS(N13)>=$D$28,LARGE(G$5:$G12,1)+1,"")) ->  | H13: =IF(J13="","",IF(ABS(N13)<$D$28,LARGE($H$5:H12,1)+1,"")) -> 6 | I13: 8 | J13: =IF(Sample!K13="","",Sample!K13) -> 0.251 | K13: =IF(Sample!M13="","",Sample!M13) -> 0.83 | M13: 0.78 | N13: 0.05 | U13: =IF(X13="","",IF(ABS(AB13)>=$R$28,LARGE($U$5:U12,1)+1,"")) ->  | V13: =IF(X13="","",IF(ABS(AB13)<$R$28,LARGE($V$5:V12,1)+1,"")) -> 6 | W13: 8 | X13: =IF(Sample!K13="","",Sample!K13) -> 0.251 | Y13: =IF(Sample!N13="","",Sample!N13) -> 3.29 | AA13: 3.23 | AB13: 0.06 | AI13: 0.251 | AJ13: 0.063001 | AK13: 0.83 | AL13: Residual | AM13: 20 | AN13: 0.6173724591 | AO13: 0.03086862296 | AW13: 0.251 | AX13: 0.063001 | AY13: 3.29 | AZ13: Residual | BA13: 20 | BB13: 25.36646302 | BC13: 1.268323151
G14: =IF(J14="","",IF(ABS(N14)>=$D$28,LARGE(G$5:$G13,1)+1,"")) ->  | H14: =IF(J14="","",IF(ABS(N14)<$D$28,LARGE($H$5:H13,1)+1,"")) -> 7 | I14: 9 | J14: =IF(Sample!K14="","",Sample!K14) -> 0.263 | K14: =IF(Sample!M14="","",Sample!M14) -> 0.96 | M14: 0.8 | N14: 0.16 | U14: =IF(X14="","",IF(ABS(AB14)>=$R$28,LARGE($U$5:U13,1)+1,"")) ->  | V14: =IF(X14="","",IF(ABS(AB14)<$R$28,LARGE($V$5:V13,1)+1,"")) -> 7 | W14: 9 | X14: =IF(Sample!K14="","",Sample!K14) -> 0.263 | Y14: =IF(Sample!N14="","",Sample!N14) -> 3.68 | AA14: 3.18 | AB14: 0.5 | AD14: Curved | AI14: 0.263 | AJ14: 0.069169 | AK14: 0.96 | AL14: Total | AM14: 22 | AN14: 0.9719011311 | AW14: 0.263 | AX14: 0.069169 | AY14: 3.68 | AZ14: Total | BA14: 22 | BB14: 61.87652771
G15: =IF(J15="","",IF(ABS(N15)>=$D$28,LARGE(G$5:$G14,1)+1,"")) ->  | H15: =IF(J15="","",IF(ABS(N15)<$D$28,LARGE($H$5:H14,1)+1,"")) -> 8 | I15: 10 | J15: =IF(Sample!K15="","",Sample!K15) -> 0.274 | K15: =IF(Sample!M15="","",Sample!M15) -> 0.83 | M15: 0.83 | N15: 0 | U15: =IF(X15="","",IF(ABS(AB15)>=$R$28,LARGE($U$5:U14,1)+1,"")) ->  | V15: =IF(X15="","",IF(ABS(AB15)<$R$28,LARGE($V$5:V14,1)+1,"")) -> 8 | W15: 10 | X15: =IF(Sample!K15="","",Sample!K15) -> 0.274 | Y15: =IF(Sample!N15="","",Sample!N15) -> 3.03 | AA15: 3.14 | AB15: -0.11 | AI15: 0.274 | AJ15: 0.075076 | AK15: 0.83 | AW15: 0.274 | AX15: 0.075076 | AY15: 3.03
G16: =IF(J16="","",IF(ABS(N16)>=$D$28,LARGE(G$5:$G15,1)+1,"")) ->  | H16: =IF(J16="","",IF(ABS(N16)<$D$28,LARGE($H$5:H15,1)+1,"")) -> 9 | I16: 11 | J16: =IF(Sample!K16="","",Sample!K16) -> 0.294 | K16: =IF(Sample!M16="","",Sample!M16) -> 0.93 | M16: 0.87 | N16: 0.06 | U16: =IF(X16="","",IF(ABS(AB16)>=$R$28,LARGE($U$5:U15,1)+1,"")) ->  | V16: =IF(X16="","",IF(ABS(AB16)<$R$28,LARGE($V$5:V15,1)+1,"")) -> 9 | W16: 11 | X16: =IF(Sample!K16="","",Sample!K16) -> 0.294 | Y16: =IF(Sample!N16="","",Sample!N16) -> 3.16 | AA16: 3.06 | AB16: 0.1 | AI16: 0.294 | AJ16: 0.086436 | AK16: 0.93 | AM16: Coefficients | AN16: Standard Error | AO16: t Stat | AP16: P-value | AQ16: Lower 95% | AR16: Upper 95% | AW16: 0.294 | AX16: 0.086436 | AY16: 3.16 | BA16: Coefficients | BB16: Standard Error | BC16: t Stat | BD16: P-value | BE16: Lower 95% | BF16: Upper 95%
G17: =IF(J17="","",IF(ABS(N17)>=$D$28,LARGE(G$5:$G16,1)+1,"")) -> 3 | H17: =IF(J17="","",IF(ABS(N17)<$D$28,LARGE($H$5:H16,1)+1,"")) ->  | I17: 12 | J17: =IF(Sample!K17="","",Sample!K17) -> 0.323 | K17: =IF(Sample!M17="","",Sample!M17) -> 0.68 | M17: 0.92 | N17: -0.24 | U17: =IF(X17="","",IF(ABS(AB17)>=$R$28,LARGE($U$5:U16,1)+1,"")) -> 3 | V17: =IF(X17="","",IF(ABS(AB17)<$R$28,LARGE($V$5:V16,1)+1,"")) ->  | W17: 12 | X17: =IF(Sample!K17="","",Sample!K17) -> 0.323 | Y17: =IF(Sample!N17="","",Sample!N17) -> 2.1 | AA17: 2.94 | AB17: -0.84 | AI17: 0.323 | AJ17: 0.104329 | AK17: 0.68 | AL17: Intercept | AM17: 0.136015205 | AN17: 0.1410860207 | AO17: 0.9640586947 | AP17: 0.3465293553 | AQ17: -0.1582850772 | AR17: 0.4303154872 | AW17: 0.323 | AX17: 0.104329 | AY17: 2.1 | AZ17: Intercept | BA17: 6.699985328 | BB17: 0.9043578577 | BC17: 7.408555442 | BD17: 3.739202308e-07 | BE17: 4.813527894 | BF17: 8.586442763
G18: =IF(J18="","",IF(ABS(N18)>=$D$28,LARGE(G$5:$G17,1)+1,"")) -> 4 | H18: =IF(J18="","",IF(ABS(N18)<$D$28,LARGE($H$5:H17,1)+1,"")) ->  | I18: 13 | J18: =IF(Sample!K18="","",Sample!K18) -> 0.338 | K18: =IF(Sample!M18="","",Sample!M18) -> 0.5 | M18: 0.95 | N18: -0.45 | U18: =IF(X18="","",IF(ABS(AB18)>=$R$28,LARGE($U$5:U17,1)+1,"")) -> 4 | V18: =IF(X18="","",IF(ABS(AB18)<$R$28,LARGE($V$5:V17,1)+1,"")) ->  | W18: 13 | X18: =IF(Sample!K18="","",Sample!K18) -> 0.338 | Y18: =IF(Sample!N18="","",Sample!N18) -> 1.47 | AA18: 2.88 | AB18: -1.41 | AI18: 0.338 | AJ18: 0.114244 | AK18: 0.5 | AL18: X Variable 1 | AM18: 2.001532734 | AN18: 1.436831149 | AO18: 1.393018752 | AP18: 0.1789059235 | AQ18: -0.9956445222 | AR18: 4.99870999 | AW18: 0.338 | AX18: 0.114244 | AY18: 1.47 | AZ18: X Variable 1 | BA18: -34.56713789 | BB18: 9.21005166 | BC18: -3.75319696 | BD18: 0.001251998694 | BE18: -53.778969 | BF18: -15.35530678
G19: =IF(J19="","",IF(ABS(N19)>=$D$28,LARGE(G$5:$G18,1)+1,"")) ->  | H19: =IF(J19="","",IF(ABS(N19)<$D$28,LARGE($H$5:H18,1)+1,"")) -> 10 | I19: 14 | J19: =IF(Sample!K19="","",Sample!K19) -> 0.341 | K19: =IF(Sample!M19="","",Sample!M19) -> 1.06 | M19: 0.96 | N19: 0.1 | U19: =IF(X19="","",IF(ABS(AB19)>=$R$28,LARGE($U$5:U18,1)+1,"")) ->  | V19: =IF(X19="","",IF(ABS(AB19)<$R$28,LARGE($V$5:V18,1)+1,"")) -> 10 | W19: 14 | X19: =IF(Sample!K19="","",Sample!K19) -> 0.341 | Y19: =IF(Sample!N19="","",Sample!N19) -> 3.11 | AA19: 2.87 | AB19: 0.24 | AI19: 0.341 | AJ19: 0.116281 | AK19: 1.06 | AL19: X Variable 2 | AM19: -2.155390597 | AN19: 3.021517407 | AO19: -0.7133470726 | AP19: 0.4838725013 | AQ19: -8.458165464 | AR19: 4.14738427 | AW19: 0.341 | AX19: 0.116281 | AY19: 3.11 | AZ19: X Variable 2 | BA19: 55.48112429 | BB19: 19.36785087 | BC19: 2.8645989 | BD19: 0.009580884131 | BE19: 15.08049533 | BF19: 95.88175326
G20: =IF(J20="","",IF(ABS(N20)>=$D$28,LARGE(G$5:$G19,1)+1,"")) ->  | H20: =IF(J20="","",IF(ABS(N20)<$D$28,LARGE($H$5:H19,1)+1,"")) -> 11 | I20: 15 | J20: =IF(Sample!K20="","",Sample!K20) -> 0.428 | K20: =IF(Sample!M20="","",Sample!M20) -> 1.28 | M20: 1.13 | N20: 0.15 | U20: =IF(X20="","",IF(ABS(AB20)>=$R$28,LARGE($U$5:U19,1)+1,"")) ->  | V20: =IF(X20="","",IF(ABS(AB20)<$R$28,LARGE($V$5:V19,1)+1,"")) -> 11 | W20: 15 | X20: =IF(Sample!K20="","",Sample!K20) -> 0.428 | Y20: =IF(Sample!N20="","",Sample!N20) -> 2.99 | AA20: 2.52 | AB20: 0.47 | AE20: Data Entry Instructions | AI20: 0.428 | AJ20: 0.183184 | AK20: 1.28 | AW20: 0.428 | AX20: 0.183184 | AY20: 2.99
G21: =IF(J21="","",IF(ABS(N21)>=$D$28,LARGE(G$5:$G20,1)+1,"")) ->  | H21: =IF(J21="","",IF(ABS(N21)<$D$28,LARGE($H$5:H20,1)+1,"")) -> 12 | I21: 16 | J21: =IF(Sample!K21="","",Sample!K21) -> 0.452 | K21: =IF(Sample!M21="","",Sample!M21) -> 1.07 | M21: 1.18 | N21: -0.11 | U21: =IF(X21="","",IF(ABS(AB21)>=$R$28,LARGE($U$5:U20,1)+1,"")) ->  | V21: =IF(X21="","",IF(ABS(AB21)<$R$28,LARGE($V$5:V20,1)+1,"")) -> 12 | W21: 16 | X21: =IF(Sample!K21="","",Sample!K21) -> 0.452 | Y21: =IF(Sample!N21="","",Sample!N21) -> 2.36 | AA21: 2.42 | AB21: -0.06 | AI21: 0.452 | AJ21: 0.204304 | AK21: 1.07 | AW21: 0.452 | AX21: 0.204304 | AY21: 2.36
G22: =IF(J22="","",IF(ABS(N22)>=$D$28,LARGE(G$5:$G21,1)+1,"")) ->  | H22: =IF(J22="","",IF(ABS(N22)<$D$28,LARGE($H$5:H21,1)+1,"")) -> 13 | I22: 17 | J22: =IF(Sample!K22="","",Sample!K22) -> 0.454 | K22: =IF(Sample!M22="","",Sample!M22) -> 1.22 | M22: 1.18 | N22: 0.04 | U22: =IF(X22="","",IF(ABS(AB22)>=$R$28,LARGE($U$5:U21,1)+1,"")) ->  | V22: =IF(X22="","",IF(ABS(AB22)<$R$28,LARGE($V$5:V21,1)+1,"")) -> 13 | W22: 17 | X22: =IF(Sample!K22="","",Sample!K22) -> 0.454 | Y22: =IF(Sample!N22="","",Sample!N22) -> 2.69 | AA22: 2.41 | AB22: 0.28 | AI22: 0.454 | AJ22: 0.206116 | AK22: 1.22 | AW22: 0.454 | AX22: 0.206116 | AY22: 2.69
G23: =IF(J23="","",IF(ABS(N23)>=$D$28,LARGE(G$5:$G22,1)+1,"")) -> 5 | H23: =IF(J23="","",IF(ABS(N23)<$D$28,LARGE($H$5:H22,1)+1,"")) ->  | I23: 18 | J23: =IF(Sample!K23="","",Sample!K23) -> 0.482 | K23: =IF(Sample!M23="","",Sample!M23) -> 1.43 | M23: 1.24 | N23: =IF(J23="","",ROUND(K23-M23,2)) -> 0.19 | U23: =IF(X23="","",IF(ABS(AB23)>=$R$28,LARGE($U$5:U22,1)+1,"")) ->  | V23: =IF(X23="","",IF(ABS(AB23)<$R$28,LARGE($V$5:V22,1)+1,"")) -> 14 | W23: 18 | X23: =IF(Sample!K23="","",Sample!K23) -> 0.482 | Y23: =IF(Sample!N23="","",Sample!N23) -> 2.96 | AA23: 2.3 | AB23: 0.66 | AI23: 0.482 | AJ23: 0.232324 | AK23: 1.43 | AL23: RESIDUAL OUTPUT | AW23: 0.482 | AX23: 0.232324 | AY23: 2.96 | AZ23: RESIDUAL OUTPUT
G24: =IF(J24="","",IF(ABS(N24)>=$D$28,LARGE(G$5:$G23,1)+1,"")) ->  | H24: =IF(J24="","",IF(ABS(N24)<$D$28,LARGE($H$5:H23,1)+1,"")) ->  | J24: =IF(Sample!K24="","",Sample!K24) ->  | K24: =IF(Sample!M24="","",Sample!M24) ->  | N24: =IF(J24="","",ROUND(K24-M24,2)) ->  | U24: =IF(X24="","",IF(ABS(AB24)>=$R$28,LARGE($U$5:U23,1)+1,"")) ->  | V24: =IF(X24="","",IF(ABS(AB24)<$R$28,LARGE($V$5:V23,1)+1,"")) ->  | X24: =IF(Sample!K24="","",Sample!K24) ->  | Y24: =IF(Sample!N24="","",Sample!N24) -> 
G25: =IF(J25="","",IF(ABS(N25)>=$D$28,LARGE(G$5:$G24,1)+1,"")) ->  | H25: =IF(J25="","",IF(ABS(N25)<$D$28,LARGE($H$5:H24,1)+1,"")) ->  | J25: =IF(Sample!K25="","",Sample!K25) ->  | K25: =IF(Sample!M25="","",Sample!M25) ->  | U25: =IF(X25="","",IF(ABS(AB25)>=$R$28,LARGE($U$5:U24,1)+1,"")) ->  | V25: =IF(X25="","",IF(ABS(AB25)<$R$28,LARGE($V$5:V24,1)+1,"")) ->  | X25: =IF(Sample!K25="","",Sample!K25) ->  | Y25: =IF(Sample!N25="","",Sample!N25) ->  | AL25: Observation | AM25: Predicted Y | AN25: Residuals | AO25: Standard Residuals | AZ25: Observation | BA25: Predicted Y | BB25: Residuals | BC25: Standard Residuals
C26: R Sq. = | D26: =IF($AE$10="X",AM5,RSQ(K6:K35,J6:J35)) -> 0.5545159029 | G26: =IF(J26="","",IF(ABS(N26)>=$D$28,LARGE(G$5:$G25,1)+1,"")) ->  | H26: =IF(J26="","",IF(ABS(N26)<$D$28,LARGE($H$5:H25,1)+1,"")) ->  | J26: =IF(Sample!K26="","",Sample!K26) ->  | K26: =IF(Sample!M26="","",Sample!M26) ->  | Q26: R Sq. = | R26: =IF($AF$10="X",BA5,RSQ(Y6:Y35,X6:X35)) -> 0.2441437081 | U26: =IF(X26="","",IF(ABS(AB26)>=$R$28,LARGE($U$5:U25,1)+1,"")) ->  | V26: =IF(X26="","",IF(ABS(AB26)<$R$28,LARGE($V$5:V25,1)+1,"")) ->  | X26: =IF(Sample!K26="","",Sample!K26) ->  | Y26: =IF(Sample!N26="","",Sample!N26) ->  | AL26: 1 | AM26: 0.1961607028 | AN26: 0.03619723065 | AO26: 0.2160792479 | AZ26: 1 | BA26: 5.678900077 | BB26: 1.794662196 | BC26: 1.671337268
G27: =IF(J27="","",IF(ABS(N27)>=$D$28,LARGE(G$5:$G26,1)+1,"")) ->  | H27: =IF(J27="","",IF(ABS(N27)<$D$28,LARGE($H$5:H26,1)+1,"")) ->  | J27: =IF(Sample!K27="","",Sample!K27) ->  | K27: =IF(Sample!M27="","",Sample!M27) ->  | U27: =IF(X27="","",IF(ABS(AB27)>=$R$28,LARGE($U$5:U26,1)+1,"")) ->  | V27: =IF(X27="","",IF(ABS(AB27)<$R$28,LARGE($V$5:V26,1)+1,"")) ->  | X27: =IF(Sample!K27="","",Sample!K27) ->  | Y27: =IF(Sample!N27="","",Sample!N27) ->  | AL27: 2 | AM27: 0.210429594 | AN27: -0.03027240683 | AO27: -0.1807110319 | AZ27: 2 | BA27: 5.442308334 | BB27: -0.7990642544 | BC27: -0.7441544548
C28: Standard Error Outliers > | D28: =ROUND(IF($AE$10="X",AM7,STEYX(K6:K35,J6:J35)),3) -> 0.19 | G28: =IF(J28="","",IF(ABS(N28)>=$D$28,LARGE(G$5:$G27,1)+1,"")) ->  | H28: =IF(J28="","",IF(ABS(N28)<$D$28,LARGE($H$5:H27,1)+1,"")) ->  | J28: =IF(Sample!K28="","",Sample!K28) ->  | K28: =IF(Sample!M28="","",Sample!M28) ->  | Q28: Standard Error Outliers > | R28: =ROUND(IF($AF$10="X",BA7,STEYX(Y6:Y35,X6:X35)),3) -> 0.76 | U28: =IF(X28="","",IF(ABS(AB28)>=$R$28,LARGE($U$5:U27,1)+1,"")) ->  | V28: =IF(X28="","",IF(ABS(AB28)<$R$28,LARGE($V$5:V27,1)+1,"")) ->  | X28: =IF(Sample!K28="","",Sample!K28) ->  | Y28: =IF(Sample!N28="","",Sample!N28) ->  | AL28: 3 | AM28: 0.2857658715 | AN28: 0.2741077613 | AO28: 1.636285369 | AZ28: 3 | BA28: 4.23671434 | BB28: 2.585064416 | BC28: 2.407424923
G29: =IF(J29="","",IF(ABS(N29)>=$D$28,LARGE(G$5:$G28,1)+1,"")) ->  | H29: =IF(J29="","",IF(ABS(N29)<$D$28,LARGE($H$5:H28,1)+1,"")) ->  | J29: =IF(Sample!K29="","",Sample!K29) ->  | K29: =IF(Sample!M29="","",Sample!M29) ->  | U29: =IF(X29="","",IF(ABS(AB29)>=$R$28,LARGE($U$5:U28,1)+1,"")) ->  | V29: =IF(X29="","",IF(ABS(AB29)<$R$28,LARGE($V$5:V28,1)+1,"")) ->  | X29: =IF(Sample!K29="","",Sample!K29) ->  | Y29: =IF(Sample!N29="","",Sample!N29) ->  | AL29: 4 | AM29: 0.3030925841 | AN29: -0.05579737542 | AO29: -0.333082247 | AZ29: 4 | BA29: 3.971510199 | BB29: -1.304843532 | BC29: -1.215177781
A30: =IF($AE$10="X",CONCATENATE("Regression Formula = ",ROUND(AM19,2),"^2 x SDE% + ",ROUND(AM18,2)," x SDE% + ",ROUND(AM17,2)),CONCATENATE("Regression Formula = ",ROUND(SLOPE(K6:K35,J6:J35),2)," x SDE% + ",ROUND(INTERCEPT(K6:K35,J6:J35),2))) -> Regression Formula = 1.99 x SDE% + 0.28 | G30: =IF(J30="","",IF(ABS(N30)>=$D$28,LARGE(G$5:$G29,1)+1,"")) ->  | H30: =IF(J30="","",IF(ABS(N30)<$D$28,LARGE($H$5:H29,1)+1,"")) ->  | J30: =IF(Sample!K30="","",Sample!K30) ->  | K30: =IF(Sample!M30="","",Sample!M30) ->  | O30: =IF($AF$10="X",CONCATENATE("Regression Formula = ",ROUND(BA19,2),"^2 x SDE% + ",ROUND(BA18,2)," x SDE% + ",ROUND(BA17,2)),CONCATENATE("Regression Formula = ",ROUND(SLOPE(Y6:Y35,X6:X35),2)," x SDE% + ",ROUND(INTERCEPT(Y6:Y35,X6:X35),2))) -> Regression Formula = -4.05 x SDE% + 4.25 | U30: =IF(X30="","",IF(ABS(AB30)>=$R$28,LARGE($U$5:U29,1)+1,"")) ->  | V30: =IF(X30="","",IF(ABS(AB30)<$R$28,LARGE($V$5:V29,1)+1,"")) ->  | X30: =IF(Sample!K30="","",Sample!K30) ->  | Y30: =IF(Sample!N30="","",Sample!N30) ->  | AL30: 5 | AM30: 0.3417853144 | AN30: -0.05349841124 | AO30: -0.3193585879 | AZ30: 5 | BA30: 3.399324633 | BB30: -0.9506698625 | BC30: -0.8853420852
G31: =IF(J31="","",IF(ABS(N31)>=$D$28,LARGE(G$5:$G30,1)+1,"")) ->  | H31: =IF(J31="","",IF(ABS(N31)<$D$28,LARGE($H$5:H30,1)+1,"")) ->  | J31: =IF(Sample!K31="","",Sample!K31) ->  | K31: =IF(Sample!M31="","",Sample!M31) ->  | U31: =IF(X31="","",IF(ABS(AB31)>=$R$28,LARGE($U$5:U30,1)+1,"")) ->  | V31: =IF(X31="","",IF(ABS(AB31)<$R$28,LARGE($V$5:V30,1)+1,"")) ->  | X31: =IF(Sample!K31="","",Sample!K31) ->  | Y31: =IF(Sample!N31="","",Sample!N31) ->  | AL31: 6 | AM31: 0.3507980452 | AN31: -0.01782299302 | AO31: -0.1063942975 | AZ31: 6 | BA31: 3.2705108 | BB31: -0.5812977709 | BC31: -0.5413523674
C32: Subject SDE% = | D32: =Valuation!$N$6 -> 0.3250207814 | G32: =IF(J32="","",IF(ABS(N32)>=$D$28,LARGE(G$5:$G31,1)+1,"")) ->  | H32: =IF(J32="","",IF(ABS(N32)<$D$28,LARGE($H$5:H31,1)+1,"")) ->  | J32: =IF(Sample!K32="","",Sample!K32) ->  | K32: =IF(Sample!M32="","",Sample!M32) ->  | Q32: Subject SDE% = | R32: =Valuation!$N$6 -> 0.3250207814 | U32: =IF(X32="","",IF(ABS(AB32)>=$R$28,LARGE($U$5:U31,1)+1,"")) ->  | V32: =IF(X32="","",IF(ABS(AB32)<$R$28,LARGE($V$5:V31,1)+1,"")) ->  | X32: =IF(Sample!K32="","",Sample!K32) ->  | Y32: =IF(Sample!N32="","",Sample!N32) ->  | AL32: 7 | AM32: 0.3560381956 | AN32: -0.03829486326 | AO32: -0.2286010588 | AZ32: 7 | BA32: 3.196473142 | BB32: -0.7025654022 | BC32: -0.6542867747
G33: =IF(J33="","",IF(ABS(N33)>=$D$28,LARGE(G$5:$G32,1)+1,"")) ->  | H33: =IF(J33="","",IF(ABS(N33)<$D$28,LARGE($H$5:H32,1)+1,"")) ->  | J33: =IF(Sample!K33="","",Sample!K33) ->  | K33: =IF(Sample!M33="","",Sample!M33) ->  | U33: =IF(X33="","",IF(ABS(AB33)>=$R$28,LARGE($U$5:U32,1)+1,"")) ->  | V33: =IF(X33="","",IF(ABS(AB33)<$R$28,LARGE($V$5:V32,1)+1,"")) ->  | X33: =IF(Sample!K33="","",Sample!K33) ->  | Y33: =IF(Sample!N33="","",Sample!N33) ->  | AL33: 8 | AM33: 0.3612070978 | AN33: -0.1006437175 | AO33: -0.6007923367 | AZ33: 8 | BA33: 3.124083978 | BB33: -1.134836666 | BC33: -1.056853383
C34: First Estimated Multiplier = | D34: =IF($AE$10="X",ROUND(AM19*D32^2+AM18*D32+AM17,2), ROUND(ROUND(SLOPE(K6:K35,J6:J35),2)*D32+ROUND(INTERCEPT(K6:K35,J6:J35),2),2)) -> 0.93 | G34: =IF(J34="","",IF(ABS(N34)>=$D$28,LARGE(G$5:$G33,1)+1,"")) ->  | H34: =IF(J34="","",IF(ABS(N34)<$D$28,LARGE($H$5:H33,1)+1,"")) ->  | J34: =IF(Sample!K34="","",Sample!K34) ->  | K34: =IF(Sample!M34="","",Sample!M34) ->  | Q34: First Estimated Multiplier = | R34: =IF($AF$10="X",ROUND(BA19*R32^2+BA18*R32+BA17,2), ROUND(ROUND(SLOPE(Y6:Y35,X6:X35),2)*R32+ROUND(INTERCEPT(Y6:Y35,X6:X35),2),2)) -> 2.93 | U34: =IF(X34="","",IF(ABS(AB34)>=$R$28,LARGE($U$5:U33,1)+1,"")) ->  | V34: =IF(X34="","",IF(ABS(AB34)<$R$28,LARGE($V$5:V33,1)+1,"")) ->  | X34: =IF(Sample!K34="","",Sample!K34) ->  | Y34: =IF(Sample!N34="","",Sample!N34) ->  | AL34: 9 | AM34: 0.3906926039 | AN34: -0.1834302296 | AO34: -1.094986146 | AZ34: 9 | BA34: 2.724427901 | BB34: -1.362474518 | BC34: -1.268848502
G35: =IF(J35="","",IF(ABS(N35)>=$D$28,LARGE(G$5:$G34,1)+1,"")) ->  | H35: =IF(J35="","",IF(ABS(N35)<$D$28,LARGE($H$5:H34,1)+1,"")) ->  | J35: =IF(Sample!K35="","",Sample!K35) ->  | K35: =IF(Sample!M35="","",Sample!M35) ->  | U35: =IF(X35="","",IF(ABS(AB35)>=$R$28,LARGE($U$5:U34,1)+1,"")) ->  | V35: =IF(X35="","",IF(ABS(AB35)<$R$28,LARGE($V$5:V34,1)+1,"")) ->  | X35: =IF(Sample!K35="","",Sample!K35) ->  | Y35: =IF(Sample!N35="","",Sample!N35) ->  | AL35: 10 | AM35: 0.4056912382 | AN35: -0.1519318397 | AO35: -0.9069566118 | AZ35: 10 | BA35: 2.530837905 | BB35: -0.9791137673 | BC35: -0.9118313924
AL36: 11 | AM36: 0.4475915925 | AN36: 0.2056440608 | AO36: 1.227591537 | AZ36: 11 | BA36: 2.033267832 | BB36: 1.269201304 | BC36: 1.181984802
B37: FINAL REGRESSION WITH OUTLIERS REMOVED | AL37: 12 | AM37: 0.4501061279 | AN37: 0.03171205394 | AO37: 0.1893050005 | AZ37: 12 | BA37: 2.005802722 | BB37: 0.4032881867 | BC37: 0.3755751794
AL38: 13 | AM38: 0.4541418727 | AN38: 0.09563524469 | AO38: 0.570894275 | AZ38: 13 | BA38: 1.962378643 | BB38: 0.7383512845 | BC38: 0.6876135361
G39: SDE Range | I39: Relevant Comparables | L39: Outliers Removed | U39: SDE Range | W39: Relevant Comparables | Z39: Outliers Removed | AL39: 14 | AM39: 0.4875362177 | AN39: -0.0222231889 | AO39: -0.1326612522 | AZ39: 14 | BA39: 1.639002887 | BB39: 0.3394143787 | BC39: 0.3160906279
G40: =IF(ROUNDDOWN(SMALL(J6:J35,1)-0.003,2)<0,0,ROUNDDOWN(SMALL(J6:J35,1)-0.003,2)-0) -> 0.14 | H40: 1 | I40: =IF(ISERROR(VLOOKUP($H40,$H$6:$K$35,1,0)),"",VLOOKUP($H40,$H$6:$K$35,2,0)) -> 1 | J40: =IF(ISERROR(VLOOKUP($H40,$H$6:$K$35,1,0)),"",VLOOKUP($H40,$H$6:$K$35,3,0)) -> 0.151 | K40: =IF(ISERROR(VLOOKUP($H40,$H$6:$K$35,1,0)),"",VLOOKUP($H40,$H$6:$K$35,4,0)) -> 0.61 | L40: =IF(ISERROR(VLOOKUP($H40,$G$6:$H$35,1,0)),"",VLOOKUP($H40,$G$6:$K$35,3,0)) -> 2 | M40: =IF(ISERROR(VLOOKUP($H40,$G$6:$K$35,1,0)),"",VLOOKUP($H40,$G$6:$K$35,4,0)) -> 0.172 | N40: =IF(ISERROR(VLOOKUP($H40,$G$6:$K$35,1,0)),"",VLOOKUP($H40,$G$6:$K$35,5,0)) -> 0.91 | U40: =IF(ROUNDDOWN(SMALL(X6:X35,1)-0.003,2)<0,0,ROUNDDOWN(SMALL(X6:X35,1)-0.003,2)) -> 0.14 | V40: 1 | W40: =IF(ISERROR(VLOOKUP($V40,$V$6:$X$35,1,0)),"",VLOOKUP($V40,$V$6:$X$35,2,0)) -> 1 | X40: =IF(ISERROR(VLOOKUP($V40,$V$6:$Y$35,1,0)),"",VLOOKUP($H40,$V$6:$Y$35,3,0)) -> 0.151 | Y40: =IF(ISERROR(VLOOKUP($V40,$V$6:$Y$35,1,0)),"",VLOOKUP($V40,$V$6:$Y$35,4,0)) -> 4.02 | Z40: =IF(ISERROR(VLOOKUP($V40,$U$6:$V$35,1,0)),"",VLOOKUP($V40,$U$6:$Y$35,3,0)) -> 2 | AA40: =IF(ISERROR(VLOOKUP($V40,$U$6:$X$35,1,0)),"",VLOOKUP($V40,$U$6:$X$35,4,0)) -> 0.172 | AB40: =IF(ISERROR(VLOOKUP($V40,$U$6:$Y$35,1,0)),"",VLOOKUP($V40,$U$6:$Y$35,5,0)) -> 5.28 | AL40: 15 | AM40: 0.5429216358 | AN40: -0.2371167125 | AO40: -1.415467426 | AZ40: 15 | BA40: 1.322385065 | BB40: -0.3051062112 | BC40: -0.2841400363
G41: =ROUNDUP(LARGE(J6:J35,1)+0.003,2) -> 0.49 | H41: 2 | I41: 3 | J41: 0.195 | K41: 0.57 | L41: 7 | M41: 0.246 | N41: 0.47 | U41: =ROUNDUP(LARGE(X6:X35,1)+0.003,2) -> 0.49 | V41: 2 | W41: 3 | X41: 0.195 | Y41: 2.94 | Z41: 7 | AA41: 0.246 | AB41: 1.93 | AL41: 16 | AM41: 0.5494767419 | AN41: -0.01774021491 | AO41: -0.1059001539 | AZ41: 16 | BA41: 1.315880087 | BB41: 0.398405627 | BC41: 0.3710281376
G42: Mult Range | H42: 3 | I42: 4 | J42: 0.197 | K42: 0.59 | L42: 12 | M42: 0.323 | N42: 0.68 | U42: Mult Range | V42: 3 | W42: 4 | X42: 0.197 | Y42: 3.02 | Z42: 12 | AA42: 0.323 | AB42: 2.1 | AL42: 17 | AM42: 0.5607705384 | AN42: 0.1921706381 | AO42: 1.147161985 | AZ42: 17 | BA42: 1.331278679 | BB42: 0.9626281309 | BC42: 0.8964786098
G43: =IF(ROUNDDOWN(SMALL(K6:K35,1)*100-0.002,-1)/100<0,0,ROUNDDOWN(SMALL(K6:K35,1)*100-0.002,-1)/100) -> 0.4 | H43: 4 | I43: 5 | J43: 0.203 | K43: 0.69 | L43: 13 | M43: 0.338 | N43: 0.5 | U43: =IF(ROUNDDOWN(SMALL(Y6:Y35,1)*100-0.005,-1)/100<0,0,ROUNDDOWN(SMALL(Y6:Y35,1)*100-0.005,-1)/100) -> 1.4 | V43: 4 | W43: 5 | X43: 0.203 | Y43: 3.39 | Z43: 13 | AA43: 0.338 | AB43: 1.47 | AL43: 18 | AM43: 0.5685633396 | AN43: 0.3725857969 | AO43: 2.224149675 | AZ43: 18 | BA43: 1.368137341 | BB43: 1.381821287 | BC43: 1.286865806
G44: =ROUNDUP(LARGE(K6:K35,1)*100+0.005,-1)/100 -> 1.5 | H44: 5 | I44: 6 | J44: 0.222 | K44: 0.83 | L44: 18 | M44: 0.482 | N44: 1.43 | U44: =ROUNDUP(LARGE(Y6:Y35,1)*100+0.005,-1)/100 -> 5.3 | V44: 5 | W44: 6 | X44: 0.222 | Y44: 3.73 | AL44: 19 | AM44: 0.5739967813 | AN44: -0.1429170169 | AO44: -0.8531426567 | AZ44: 19 | BA44: 1.411440301 | BB44: -0.1904068249 | BC44: -0.1773225197
G45: =MATCH(LARGE(I9:I35,1),I9:I35)+8 -> 23 | H45: 6 | I45: 8 | J45: 0.251 | K45: 0.83 | U45: =MATCH(LARGE(W9:W35,1),W9:W35)+8 -> 23 | V45: 6 | W45: 8 | X45: 0.251 | Y45: 3.29 | AL45: 20 | AM45: 0.5803845564 | AN45: -0.06220273823 | AO45: -0.3713190389 | AZ45: 20 | BA45: 1.488225911 | BB45: -0.077334822 | BC45: -0.07202055652
G46: SDE Index | H46: 7 | I46: 9 | J46: 0.263 | K46: 0.96 | U46: SDE Index | V46: 7 | W46: 9 | X46: 0.263 | Y46: 3.68 | AL46: 21 | AM46: 0.5937845769 | AN46: 0.2549239102 | AO46: 1.521767434 | AZ46: 21 | BA46: 1.829520197 | BB46: 0.251927767 | BC46: 0.2346158886
G47: =ROUND((G41-G40)/12,2) -> 0.03 | H47: 8 | I47: 10 | J47: 0.274 | K47: 0.83 | U47: =ROUND((U41-U40)/12,2) -> 0.03 | V47: 8 | W47: 10 | X47: 0.274 | Y47: 3.03 | AL47: 22 | AM47: 0.5945467962 | AN47: -0.296929909 | AO47: -1.772522104 | AZ47: 22 | BA47: 1.864452455 | BB47: -1.140265311 | BC47: -1.061908984
G48: Mult Index | H48: 9 | I48: 11 | J48: 0.294 | K48: 0.93 | U48: Mult Index | V48: 9 | W48: 11 | X48: 0.294 | Y48: 3.16 | AL48: 23 | AM48: 0.5953793786 | AN48: -0.05215507958 | AO48: -0.3113395741 | AZ48: 23 | BA48: 1.90664479 | BB48: -0.5967856355 | BC48: -0.5557759426
G49: =ROUNDUP((G44-G43)/5,1)*0.5 -> 0.15 | H49: 10 | I49: 14 | J49: 0.341 | K49: 1.06 | U49: =ROUNDUP((U44-U43)/5,1)*0.5 -> 0.4 | V49: 10 | W49: 14 | X49: 0.341 | Y49: 3.11
H50: 11 | I50: 15 | J50: 0.428 | K50: 1.28 | V50: 11 | W50: 15 | X50: 0.428 | Y50: 2.99
H51: 12 | I51: 16 | J51: 0.452 | K51: =IF(ISERROR(VLOOKUP($H51,$H$6:$K$35,1,0)),"",VLOOKUP($H51,$H$6:$K$35,4,0)) -> 1.07 | V51: 12 | W51: 16 | X51: 0.452 | Y51: 2.36
H52: 13 | I52: 17 | J52: 0.454 | K52: 1.22 | N52: =IF(ISERROR(VLOOKUP($H52,$G$6:$K$35,1,0)),"",VLOOKUP($H52,$G$6:$K$35,5,0)) ->  | V52: 13 | W52: 17 | X52: 0.454 | Y52: 2.69
H53: 14 | V53: 14 | W53: 18 | X53: 0.482 | Y53: 2.96 | AA53: =IF(ISERROR(VLOOKUP($V53,$U$6:$X$35,1,0)),"",VLOOKUP($V53,$U$6:$X$35,4,0)) -> 
H54: 15 | V54: 15
H55: 16 | M55: =IF(ISERROR(VLOOKUP($H55,$G$6:$K$35,3,0)),"",CONCATENATE("#",VLOOKUP($H55,$G$6:$K$35,3,0)," ", ROUND( VLOOKUP($H55,$G$6:$K$35,4,0),2),"%")) ->  | V55: 16 | Z55: =IF(ISERROR(VLOOKUP($H55,$G$6:$V$35,1,0)),"",VLOOKUP($H55,$G$6:$Y$35,3,0)) ->  | AA55: =IF(ISERROR(VLOOKUP($H55,$G$6:$Y$35,3,0)),"",CONCATENATE("#",VLOOKUP($H55,$G$6:$Y$35,3,0)," ", ROUND( VLOOKUP($H55,$G$6:$Y$35,4,0),2),"%")) ->  | AB55: =IF(ISERROR(VLOOKUP($H55,$G$6:$Y$35,1,0)),"",VLOOKUP($H55,$G$6:$Y$35,5,0)) ->  | AL55: SUMMARY OUTPUT | AZ55: SUMMARY OUTPUT
H56: 17 | N56: =IF(ISERROR(VLOOKUP($H56,$G$6:$K$35,5,0)),"",VLOOKUP($H56,$G$6:$K$35,5,0)) ->  | V56: 17 | AB56: =IF(ISERROR(VLOOKUP($H56,$G$6:$Y$35,5,0)),"",VLOOKUP($H56,$G$6:$Y$35,5,0)) -> 
H57: 18 | J57: =IF(ISERROR(VLOOKUP($H57,$H$6:$K$35,1,0)),"",VLOOKUP($H57,$H$6:$K$35,3,0)) ->  | V57: 18 | AL57: Regression Statistics | AZ57: Regression Statistics
H58: 19 | V58: 19 | AL58: Multiple R | AM58: 0.8773475006 | AZ58: Multiple R | BA58: 0.8483656294
H59: 20 | V59: 20 | AL59: R Square | AM59: 0.7697386367 | AZ59: R Square | BA59: 0.7197242412
H60: 21 | V60: 21 | AI60: =J40 -> 0.151 | AJ60: =IF(AI60="","",AI60^2) -> 0.022801 | AK60: =K40 -> 0.61 | AL60: Adjusted R Square | AM60: 0.7313617429 | AW60: =X40 -> 0.151 | AX60: =IF(AW60="","",AW60^2) -> 0.022801 | AY60: =Y40 -> 4.02 | AZ60: Adjusted R Square | BA60: 0.6766048936
C61: R Sq. = | D61: =IF($AE$10="X",ROUND(AM59,2),RSQ(K40:K66,J40:J66)) -> 0.860118277 | G61: SDE Range | H61: 22 | Q61: R Sq. = | R61: =IF($AF$10="X",ROUND(BA59,2),RSQ(Y40:Y66,X40:X66)) -> 0.480584152 | U61: SDE Range | V61: 22 | AI61: =J41 -> 0.195 | AJ61: =IF(AI61="","",AI61^2) -> 0.038025 | AK61: =K41 -> 0.57 | AL61: Standard Error | AM61: 0.06808726173 | AW61: =X41 -> 0.195 | AX61: =IF(AW61="","",AW61^2) -> 0.038025 | AY61: =Y41 -> 2.94 | AZ61: Standard Error | BA61: 0.5557710576
G62: =ROUNDDOWN(SMALL(J40:J66,1)-0.003,2) -> 0.14 | H62: 23 | U62: =ROUNDDOWN(SMALL(X40:X66,1)-0.003,2) -> 0.14 | V62: 23 | AI62: 0.197 | AJ62: 0.038809 | AK62: 0.59 | AL62: Observations | AM62: 15 | AW62: 0.197 | AX62: 0.038809 | AY62: 3.02 | AZ62: Observations | BA62: 16
A63: =IF($AE$10="X",CONCATENATE("Regression Formula = ",ROUND(AM73,2),"^2 x SDE% + ",ROUND(AM72,2)," x SDE% + ",ROUND(AM71,2)),CONCATENATE("Regression Formula = ",ROUND(SLOPE(K39:K68,J39:J68),2)," x SDE% + ",ROUND(INTERCEPT(K39:K68,J39:J68),2))) -> Regression Formula = 2.1 x SDE% + 0.28 | G63: =ROUNDUP(LARGE(J40:J66,1)+0.003,2) -> 0.46 | H63: 24 | O63: =IF($AF$10="X",CONCATENATE("Regression Formula = ",ROUND(BA73,2),"^2 x SDE% + ",ROUND(BA72,2)," x SDE% + ",ROUND(BA71,2)),CONCATENATE("Regression Formula = ",ROUND(SLOPE(Y40:Y66,X40:X66),2)," x SDE% + ",ROUND(INTERCEPT(Y40:Y66,X40:X66),2))) -> Regression Formula = -2.68 x SDE% + 3.98 | U63: =ROUNDUP(LARGE(X40:X66,1)+0.003,2) -> 0.49 | V63: 24 | AI63: 0.203 | AJ63: 0.041209 | AK63: 0.69 | AW63: 0.203 | AX63: 0.041209 | AY63: 3.39
G64: Mult Range | H64: 25 | U64: Mult Range | V64: 25 | AI64: 0.222 | AJ64: 0.049284 | AK64: 0.83 | AL64: ANOVA | AW64: 0.222 | AX64: 0.049284 | AY64: 3.73 | AZ64: ANOVA
C65: Subject SDE% = | D65: =Valuation!$N$6 -> 0.3250207814 | G65: =IF(ROUNDDOWN(SMALL(K40:K66,1)*100,-1)/100-0.002<0,0,ROUNDDOWN(SMALL(K40:K66,1)*100,-1)/100-0.002) -> 0.498 | H65: 26 | Q65: Subject SDE% = | R65: =Valuation!$N$6 -> 0.3250207814 | U65: =ROUNDDOWN(SMALL(Y40:Y66,1)*100-0.005,-1)/100 -> 2.3 | V65: 26 | AI65: 0.251 | AJ65: 0.063001 | AK65: 0.83 | AM65: df | AN65: SS | AO65: MS | AP65: F | AQ65: Significance F | AW65: 0.251 | AX65: 0.063001 | AY65: 3.29 | BA65: df | BB65: SS | BC65: MS | BD65: F | BE65: Significance F
G66: =ROUNDUP(LARGE(K40:K66,1)*100,-1)/100+0.005 -> 1.305 | H66: 27 | K66: =IF(ISERROR(VLOOKUP($H66,$H$6:$K$35,1,0)),"",VLOOKUP($H66,$H$6:$K$35,4,0)) ->  | U66: =ROUNDUP(LARGE(Y40:Y66,1)*100+0.005,-1)/100 -> 4.1 | V66: 27 | AI66: 0.263 | AJ66: 0.069169 | AK66: 0.96 | AL66: Regression | AM66: 2 | AN66: 0.1859667057 | AO66: 0.09298335284 | AP66: 20.05734594 | AQ66: 0.0001490480949 | AW66: 0.263 | AX66: 0.069169 | AY66: 3.68 | AZ66: Regression | BA66: 2 | BB66: 10.31135642 | BC66: 5.155678212 | BD66: 16.69144555 | BE66: 0.0002566291533
C67: Predicted Multiplier = | D67: =IF($AE$10="X",ROUND(AM73*D65^2+AM72*D65+AM71,2), ROUND(ROUND(SLOPE(K40:K66,J40:J66),2)*D65+ROUND(INTERCEPT(K40:K66,J40:J66),2),2)) -> 0.96 | G67: =MATCH(LARGE(I40:I66,1),I40:I66)+39 -> 52 | Q67: Predicted Multiplier = | R67: =IF($AF$10="X",ROUND(BA73*R65^2+BA72*R65+BA71,2), ROUND(ROUND(SLOPE(Y40:Y66,X40:X66),2)*R65+ROUND(INTERCEPT(Y40:Y66,X40:X66),2),2)) -> 3.11 | U67: =MATCH(LARGE(W40:W66,1),W40:W66)+39 -> 53 | AI67: 0.274 | AJ67: 0.075076 | AK67: 0.83 | AL67: Residual | AM67: 12 | AN67: 0.05563050252 | AO67: 0.00463587521 | AW67: 0.274 | AX67: 0.075076 | AY67: 3.03 | AZ67: Residual | BA67: 13 | BB67: 4.01545909 | BC67: 0.3088814685
G68: SDE Index | U68: SDE Index | AI68: 0.294 | AJ68: 0.086436 | AK68: 0.93 | AL68: Total | AM68: 14 | AN68: 0.2415972082 | AW68: 0.294 | AX68: 0.086436 | AY68: 3.16 | AZ68: Total | BA68: 15 | BB68: 14.32681551
G69: =ROUND((G63-G62)/12,2) -> 0.03 | U69: =ROUND((U63-U62)/12,2) -> 0.03 | AI69: 0.341 | AJ69: 0.116281 | AK69: 1.06 | AW69: 0.341 | AX69: 0.116281 | AY69: 3.11
G70: Mult Index | U70: Mult Index | AI70: 0.428 | AJ70: 0.183184 | AK70: 1.28 | AM70: Coefficients | AN70: Standard Error | AO70: t Stat | AP70: P-value | AQ70: Lower 95% | AR70: Upper 95% | AW70: 0.428 | AX70: 0.183184 | AY70: 2.99 | BA70: Coefficients | BB70: Standard Error | BC70: t Stat | BD70: P-value | BE70: Lower 95% | BF70: Upper 95%
G71: =ROUNDUP((G66-G65)/5,1)*0.5 -> 0.1 | U71: =ROUNDUP((U66-U65)/5,1)*0.5 -> 0.2 | AI71: 0.452 | AJ71: 0.204304 | AK71: 1.07 | AL71: Intercept | AM71: 0.1099968115 | AN71: 0.06061578865 | AO71: 1.814656114 | AP71: 0.0946376403 | AQ71: -0.02207364649 | AR71: 0.2420672695 | AW71: 0.452 | AX71: 0.204304 | AY71: 2.36 | AZ71: Intercept | BA71: 4.23225155 | BB71: 0.6078322156 | BC71: 6.96286153 | BD71: 9.874620908e-06 | BE71: 2.919109883 | BF71: 5.545393217
AI72: 0.454 | AJ72: 0.206116 | AK72: 1.22 | AL72: X Variable 1 | AM72: 2.011056676 | AN72: 0.6496431463 | AO72: 3.095632867 | AP72: 0.009264863434 | AQ72: 0.5956058537 | AR72: 3.426507497 | AW72: 0.454 | AX72: 0.206116 | AY72: 2.69 | AZ72: X Variable 1 | BA72: -11.26072323 | BB72: 5.823087674 | BC72: -1.933806231 | BD72: 0.07520832348 | BE72: -23.84073932 | BF72: 1.319292868
AL73: X Variable 2 | AM73: -2.442223688 | AN73: 1.423513793 | AO73: -1.715630505 | AP73: 0.1119102446 | AQ73: -5.543793804 | AR73: 0.6593464274 | AW73: 0.482 | AX73: 0.232324 | AY73: 2.96 | AZ73: X Variable 2 | BA73: 9.188238162 | BB73: 11.9886982 | BC73: 0.7664083296 | BD73: 0.4571254601 | BE73: -16.71176966 | BF73: 35.08824598
AL77: RESIDUAL OUTPUT | AZ77: RESIDUAL OUTPUT
AL79: Observation | AM79: Predicted Y | AN79: Residuals | AO79: Standard Residuals | AZ79: Observation | BA79: Predicted Y | BB79: Residuals | BC79: Standard Residuals
AL80: 1 | AM80: 0.1701611538 | AN80: 0.06219677968 | AO80: 0.9866779558 | AZ80: 1 | BA80: 3.809169382 | BB80: 0.8340746975 | BC80: 1.612066575
AL81: 2 | AM81: 0.1843489213 | AN81: -0.004191734139 | AO81: -0.06649687803 | AZ81: 2 | BA81: 3.26699849 | BB81: -0.6003318235 | BC81: -1.160297596
AL82: 3 | AM82: 0.2754906611 | AN82: -0.0281954524 | AO82: -0.4472873271 | AZ82: 3 | BA82: 3.03385365 | BB82: -0.5851988801 | BC82: -1.131049242
AL83: 4 | AM83: 0.3129124061 | AN83: -0.02462550296 | AO83: -0.3906543241 | AZ83: 4 | BA83: 2.978828328 | BB83: -0.2896152995 | BC83: -0.5597569922
AL84: 5 | AM84: 0.3215614311 | AN84: 0.0114136211 | AO84: 0.1810635277 | AZ84: 5 | BA84: 2.946697807 | BB84: -0.4527900669 | BC84: -0.8751347267
AL85: 6 | AM85: 0.3265771366 | AN85: -0.00883380421 | AO85: -0.1401378002 | AZ85: 6 | BA85: 2.364352084 | BB85: 0.9381170518 | BC85: 1.813155521
AL86: 7 | AM86: 0.3315149222 | AN86: -0.07095154192 | AO86: -1.125561849 | AZ86: 7 | BA86: 2.347636432 | BB86: 0.06145447759 | BC86: 0.1187767828
AL87: 8 | AM87: 0.3735594637 | AN87: -0.1198000652 | AO87: -1.900485589 | AZ87: 8 | BA87: 2.32070272 | BB87: 0.3800272069 | BC87: 0.7345015498
AL88: 9 | AM88: 0.4145191991 | AN88: 0.06729898275 | AO88: 1.067618341 | AZ88: 9 | BA88: 2.092051531 | BB88: -0.1136342652 | BC88: -0.2196278119
AL89: 10 | AM89: 0.418176107 | AN89: 0.1316010104 | AO89: 2.087693552 | AZ89: 10 | BA89: 1.677469189 | BB89: -0.6601903358 | BC89: -1.275989761
AL90: 11 | AM90: 0.447891203 | AN90: 0.01742182577 | AO90: 0.2763765509 | AZ90: 11 | BA90: 1.62341781 | BB90: 0.09086790409 | BC90: 0.1756258898
AL91: 12 | AM91: 0.4988158652 | AN91: 0.03292066179 | AO91: 0.5222471557 | AZ91: 12 | BA91: 1.526010905 | BB91: 0.7678959053 | BC91: 1.484158824
AL92: 13 | AM92: 0.5155896697 | AN92: -0.08450990527 | AO92: -1.340649162 | AZ92: 13 | BA92: 1.401938613 | BB92: -0.1809051371 | BC92: -0.3496462915
AL93: 14 | AM93: 0.5191733446 | AN93: -0.0009915264327 | AO93: -0.0157293879 | AZ93: 14 | BA93: 1.335889631 | BB93: 0.07500145787 | BC93: 0.1449598503
AL94: 15 | AM94: 0.523977648 | AN94: 0.01924665106 | AO94: 0.3053252342 | AZ94: 15 | BA94: 1.156303726 | BB94: -0.4321165823 | BC94: -0.8351778336
AZ95: 16 | BA95: 1.142515466 | BB95: 0.1673436893 | BC95: 0.3234352618

Sheet Valuation
D1: =D6 -> ABC Plumbing Company
D2: Company Information | L2: Financial Data
I3: Date of Valuation / Financial Statement Date:
D4: 2013-03-08 | L4: 2012-12-31 | O4: Data Entry Instructions
C5: Prepared For: | D5: C. Fred Hall, III | K5: Annual Revenues = | L5: 1203000 | N5: SDE%
C6: Company Name: | D6: ABC Plumbing Company | K6: Cash Flow (SDE) = | L6: 391000 | N6: =IF(L6=0,"",L6/L5) -> 0.3250207814
C7: Address: | D7: 123 Any Street | K7: Current Inventory = | L7: 3400
C8: City, State: | D8: Anytown, CA | K8: Current Fixtures = | L8: 350000 | O8: =IF(G13="","",CONCATENATE(" ** Multiplier Formulas using Subject's SDE% of ",ROUND(G13,3)*100,"% (= ",ROUND(G13,3),")")) -> 
C9: SIC Code: | D9: 1711 | E9: Plumbing Contractors
B10: Statistical Analysis of Sold Comparables
D13: =CONCATENATE(D6,"'s SDE % is ",IF(L6=0,"",ROUND(L6/L5,3)*100),"%") -> ABC Plumbing Company's SDE % is 32.5% | K13: Revenue Multiplier Range | L13: Cash Flow Multiplier Range
D14: =IF(N6<AVERAGE(I15,I15,I16),"The Subject is in the Lower Range of SDE%.",IF(N6<AVERAGE(I15,I16,I16),"The Subject is between the Lower to Middle Range of SDE%.",IF(N6<AVERAGE(I16,I16,I17),"The Subject is in the Middle Range of SDE%.",IF(N6<AVERAGE(I16,I17,I17),"The Subject is between the Mid to Upper Range of SDE%.","The Subject is in the Upper Range of SDE%")))) -> The Subject is between the Mid to Upper Range of SDE%.
H15: The Lowest 16% of Companies have SDE% of Less Than | I15: =ROUND(AVERAGE(Regression!$J$40:$J$66) - STDEV(Regression!$J$40:$J$66),3) -> 0.184 | J15: = | K15: =(I15*SLOPE(Regression!$K$40:$K$66,Regression!$J$40:$J$66)+INTERCEPT(Regression!$K$40:$K$66,Regression!$J$40:$J$66)) -> 0.6666673242 | L15: =(I15*SLOPE(Regression!Y40:Y66,Regression!X40:X66)+INTERCEPT(Regression!Y40:Y66,Regression!X40:X66)) -> 3.481656516
H16: The Mid Range of Companies have SDE% of | I16: =ROUND(AVERAGE(Regression!J40:J66),3) -> 0.287 | J16: = | K16: =(I16*SLOPE(Regression!$K$40:$K$66,Regression!$J$40:$J$66)+INTERCEPT(Regression!$K$40:$K$66,Regression!$J$40:$J$66)) -> 0.8832783166 | L16: =(I16*SLOPE(Regression!Y41:Y67,Regression!X41:X67)+INTERCEPT(Regression!Y41:Y67,Regression!X41:X67)) -> 3.157733381
H17: The Highest 16% of Companies have SDE% of More Than | I17: =ROUND(AVERAGE(Regression!$J$40:$J$66) + STDEV(Regression!$J$40:$J$66),3) -> 0.389 | J17: = | K17: =(I17*SLOPE(Regression!$K$40:$K$66,Regression!$J$40:$J$66)+INTERCEPT(Regression!$K$40:$K$66,Regression!$J$40:$J$66)) -> 1.09778629 | L17: =(I17*SLOPE(Regression!Y42:Y68,Regression!X42:X68)+INTERCEPT(Regression!Y42:Y68,Regression!X42:X68)) -> 2.943692128 | P17: Values Using Other Methodologies (From Samples Worksheet)
F19: REVENUE MULTIPLIER VALUE | P19: Revenue Multipliers
D20: =IF(N6="","",CONCATENATE("Regression Formula: SDE% x ",ROUND(SLOPE(Regression!K40:K66,Regression!J40:J66),3)," + ",ROUND(INTERCEPT(Regression!K40:K66,Regression!J40:J66),3)," = .",ROUND(D23,2))) -> Regression Formula: SDE% x 2.103 + 0.28 = .0.96 | P20: Median | R20: Harmonic Mean
K21: =CONCATENATE("R Sq. = ",ROUND(Regression!D61,2)) -> R Sq. = 0.86 | P21: =Sample!M38 -> 0.83 | R21: =Sample!M41 -> 0.78
D22: Multiplier | F22: Revenue | H22: Predicted Value | K22: Weight | M22: Weighted Value | P22: =L5 -> 1203000 | R22: =L5 -> 1203000
D23: =ROUND(Regression!D67,2) -> 0.96 | E23: x | F23: =L5 -> 1203000 | H23: =ROUND(F23*D23,-3) -> 1155000 | J23: x | K23: =Regression!D61/(Regression!D61+Regression!R61) -> 0.6415430139 | L23: = | M23: =IF($P$22="x","",K23*H23) -> 740982.181 | P23: =P21*P22 -> 998490 | R23: =R21*R22 -> 938340
F24: CASH FLOW MULTIPLIER VALUE | P24: Cash Flow Multipliers
D25: =IF(N6="","",CONCATENATE("Regression Formula: SDE% x ",ROUND(SLOPE(Regression!Y40:Y66,Regression!X40:X66),3)," + ",ROUND(INTERCEPT(Regression!Y40:Y66,Regression!X40:X66),3)," = ",ROUND(D28,2))) -> Regression Formula: SDE% x -2.681 + 3.975 = 3.11 | P25: Median | R25: Harmonic Mean
K26: =CONCATENATE("R Sq. = ",ROUND(Regression!R61,2)) -> R Sq. = 0.48 | P26: =Sample!N38 -> 3.03 | R26: =Sample!N41 -> 2.83
D27: Multiplier | F27: Cash Flow | H27: Predicted Value | K27: Weight | M27: Weighted Value | P27: =L6 -> 391000 | R27: =L6 -> 391000
D28: =ROUND(Regression!R67,2) -> 3.11 | E28: x | F28: =L6 -> 391000 | H28: =ROUND(D28*F28,-2) -> 1216000 | J28: x | K28: =Regression!R61/(Regression!R61+Regression!D61) -> 0.3584569861 | L28: = | M28: =IF($P$22="x","",K28*H28) -> 435883.6951 | P28: =P26*P27 -> 1184730 | R28: =R26*R27 -> 1106530
F29: =IF(L7>0,"Probable Selling Price Including Inventory = ","Probable Selling Price = ") -> Probable Selling Price Including Inventory = | M29: =DOLLAR(ROUND(SUM($M$23:$N$28),IF(SUM(M23:N28)>999999,-4,-3)),0) -> $1,180,000 | P29: =AVERAGE(P28,P23) -> 1091610 | R29: =AVERAGE(R28,R23) -> 1022435
P31: Spread between Above Multiplier Values
P32: =ABS(P23-P28) -> 186240 | R32: =ABS(R23-R28) -> 168190
P34: Spread between Regression Values
Q35: =ABS(H23-H28) -> 61000
